fUST/lending_fUST_20240703
["ID","MTS","AMOUNT","RATE_DAILY","PERIOD"]
[330944313,1719959442551,-500.0,0.00014056,2]
[330944314,1719959442562,-500.0,0.00014056,2]
[330944315,1719959442573,-500.0,0.00014056,2]
[330944316,1719959442583,-500.0,0.00014056,2]
[330944317,1719959442594,-500.0,0.00014056,2]
[330944318,1719959442604,-500.0,0.00014056,2]
[330944319,1719959442614,-500.0,0.00014056,2]
[330944320,1719959442624,-500.0,0.00014056,2]
[330944321,1719959442634,-500.0,0.00014056,2]
[330944322,1719959442644,-500.0,0.00014056,2]
[330944323,1719959442655,-500.0,0.00014056,2]
[330944324,1719959442665,-5942.74,0.00014056,2]
[330944325,1719959442676,-520.77,0.00014056,2]
[330944326,1719959442686,-500.0,0.00014056,2]
[330944327,1719959442696,-500.0,0.00014056,2]
[330944328,1719959442707,-500.0,0.00014056,2]
[330944329,1719959442717,-500.0,0.00014056,2]
[330944330,1719959442727,-500.0,0.00014056,2]
[330944331,1719959442736,-3373.44,0.00014056,2]
[330944332,1719959442748,-500.0,0.00014056,2]
[330944333,1719959442758,-500.0,0.00014056,2]
[330944334,1719959442772,-500.0,0.00014056,2]
[330944335,1719959442782,-500.0,0.00014056,2]
[330944336,1719959442792,-500.0,0.00014056,2]
[330944337,1719959442803,-500.0,0.00014056,2]
[330944338,1719959442812,-500.0,0.00014056,2]
[330944339,1719959442822,-512.81,0.00014056,2]
[330944340,1719959442832,-500.0,0.00014056,2]
[330944341,1719959442842,-500.0,0.00014056,2]
[330944342,1719959442852,-500.0,0.00014056,2]
[330944343,1719959442862,-500.0,0.00014056,2]
[330944344,1719959442873,-500.0,0.00014056,2]
[330944345,1719959442883,-500.0,0.00014056,2]
[330944346,1719959442893,-500.0,0.00014056,2]
[330944347,1719959442903,-500.0,0.00014056,2]
[330944348,1719959442913,-500.0,0.00014056,2]
[330944349,1719959442923,-500.0,0.00014056,2]
[330944350,1719959442933,-500.0,0.00014056,2]
[330944351,1719959442943,-500.0,0.00014056,2]
[330944352,1719959442954,-500.0,0.00014056,2]
[330944353,1719959442963,-500.0,0.00014056,2]
[330944354,1719959442973,-500.0,0.00014056,2]
[330944355,1719959442983,-500.0,0.00014056,2]
[330944356,1719959442994,-1101.56,0.00014056,2]
[330944357,1719959443003,-500.0,0.00014056,2]
[330944358,1719959443012,-257.73467026,0.00014056,2]
[330944359,1719959443021,-500.0,0.00014056,2]
[330944360,1719959443031,-500.0,0.00014056,2]
[330944361,1719959443042,-500.0,0.00014056,2]
[330944362,1719959443054,-701.47,0.00014056,2]
[330944363,1719959443063,-500.0,0.00014056,2]
[330944364,1719959443073,-500.0,0.00014056,2]
[330944365,1719959443083,-502.52302626,0.00014056,2]
[330944366,1719959443093,-500.0,0.00014056,2]
[330944367,1719959443103,-500.0,0.00014056,2]
[330944368,1719959443113,-500.0,0.00014056,2]
[330944369,1719959443123,-500.0,0.00014056,2]
[330944370,1719959443134,-3695.33,0.00014056,2]
[330944371,1719959443143,-580.53,0.00014056,2]
[330944372,1719959443153,-500.0,0.00014056,2]
[330944374,1719959443163,-500.0,0.00014056,2]
[330944375,1719959443173,-500.0,0.00014056,2]
[330944376,1719959443182,-500.0,0.00014056,2]
[330944377,1719959443192,-500.0,0.00014056,2]
[330944378,1719959443202,-500.0,0.00014056,2]
[330944379,1719959443211,-500.0,0.00014056,2]
[330944380,1719959443221,-500.0,0.00014056,2]
[330944381,1719959443230,-500.0,0.00014056,2]
[330944382,1719959443240,-500.0,0.00014056,2]
[330944383,1719959443250,-500.0,0.00014056,2]
[330944384,1719959443260,-501.17690381,0.00014056,2]
[330944385,1719959443269,-500.0,0.00014056,2]
[330944386,1719959443279,-500.0,0.00014056,2]
[330944387,1719959443289,-500.0,0.00014056,2]
[330944389,1719959443298,-500.0,0.00014056,2]
[330944390,1719959443308,-500.0,0.00014056,2]
[330944391,1719959443318,-500.0,0.00014056,2]
[330944392,1719959443328,-500.0,0.00014056,2]
[330944393,1719959443337,-500.0,0.00014056,2]
[330944394,1719959443347,-500.0,0.00014056,2]
[330944395,1719959443356,-500.0,0.00014056,2]
[330944396,1719959443366,-2694.41,0.00014056,2]
[330944397,1719959443376,-500.0,0.00014056,2]
[330944398,1719959443386,-500.0,0.00014056,2]
[330944399,1719959443396,-500.0,0.00014056,2]
[330944400,1719959443406,-500.0,0.00014056,2]
[330944401,1719959443414,-500.0,0.00014056,2]
[330944402,1719959443424,-500.0,0.00014056,2]
[330944403,1719959443435,-500.0,0.00014056,2]
[330944404,1719959443444,-500.0,0.00014056,2]
[330944405,1719959443454,-500.0,0.00014056,2]
[330944407,1719959443464,-423.48112156,0.00014056,2]
[330944409,1719959443473,-543.41,0.00014056,2]
[330944410,1719959443483,-500.0,0.00014056,2]
[330944411,1719959443495,-500.0,0.00014056,2]
[330944412,1719959443505,-500.0,0.00014056,2]
[330944413,1719959443514,-602.9,0.00014056,2]
[330944414,1719959443525,-503.06279149,0.00014056,2]
[330944415,1719959443536,-500.0,0.00014056,2]
[330944416,1719959443547,-500.0,0.00014057,2]
[330944418,1719959443557,-500.0,0.00014057,2]
[330944419,1719959443566,-500.0,0.00014057,2]
[330944421,1719959443576,-500.0,0.00014057,2]
[330944422,1719959443585,-500.0,0.00014057,2]
[330944423,1719959443594,-500.0,0.00014057,2]
[330944424,1719959443604,-535.6,0.00014057,2]
[330944425,1719959443613,-500.0,0.00014057,2]
[330944426,1719959443622,-500.0,0.00014057,2]
[330944427,1719959443631,-500.0,0.00014057,2]
[330944428,1719959443640,-5304.27,0.00014057,2]
[330944429,1719959443649,-500.0,0.00014057,2]
[330944430,1719959443658,-500.0,0.00014057,2]
[330944431,1719959443668,-500.0,0.00014057,2]
[330944432,1719959443677,-500.0,0.00014057,2]
[330944433,1719959443686,-234.29991254,0.00014057,2]
[330944434,1719959443696,-500.0,0.00014057,2]
[330944435,1719959443705,-980.23,0.00014057,2]
[330944436,1719959443715,-500.0,0.00014057,2]
[330944437,1719959443724,-500.0,0.00014057,2]
[330944438,1719959443734,-500.0,0.00014057,2]
[330944439,1719959443745,-375.64,0.00014057,2]
[330944440,1719959443756,-543.39,0.00014057,2]
[330944441,1719959443766,-500.0,0.00014057,2]
[330944442,1719959443775,-500.0,0.00014057,2]
[330944443,1719959443785,-500.0,0.00014057,2]
[330944444,1719959443794,-500.0,0.00014057,2]
[330944445,1719959443803,-500.0,0.00014057,2]
[330944446,1719959443813,-500.0,0.00014057,2]
[330944447,1719959443822,-500.0,0.00014057,2]
[330944448,1719959443831,-500.0,0.00014057,2]
[330944449,1719959443840,-500.0,0.00014057,2]
[330944450,1719959443850,-500.0,0.00014057,2]
[330944451,1719959443859,-500.0,0.00014057,2]
[330944452,1719959443868,-500.0,0.00014057,2]
[330944453,1719959443878,-802.83,0.00014057,2]
[330944454,1719959443887,-501.35787624,0.00014057,2]
[330944455,1719959443897,-500.0,0.00014057,2]
[330944456,1719959443906,-531.19348819,0.00014057,2]
[330944458,1719959443915,-500.0,0.00014057,2]
[330944459,1719959443926,-666.57,0.00014057,2]
[330944460,1719959443935,-8697.20487437,0.00014058,2]
[330944471,1719959444085,-10895.21432438,0.00014058,2]
[330944473,1719959444095,-500.0,0.00014058,2]
[330944474,1719959444104,-500.0,0.00014058,2]
[330944476,1719959444113,-500.0,0.00014058,2]
[330944478,1719959444122,-500.0,0.00014058,2]
[330944480,1719959444135,-500.0,0.00014058,2]
[330944482,1719959444145,-500.0,0.00014058,2]
[330944484,1719959444154,-500.0,0.00014058,2]
[330944486,1719959444163,-500.0,0.00014058,2]
[330944487,1719959444172,-500.0,0.00014058,2]
[330944489,1719959444182,-500.0,0.00014058,2]
[330944491,1719959444191,-500.0,0.00014058,2]
[330944492,1719959444200,-500.0,0.00014058,2]
[330944494,1719959444209,-500.0,0.00014058,2]
[330944495,1719959444219,-500.0,0.00014058,2]
[330944496,1719959444229,-500.0,0.00014058,2]
[330944497,1719959444238,-645.86490305,0.00014058,2]
[330944498,1719959444249,-500.0,0.00014058,2]
[330944500,1719959444259,-500.0,0.00014058,2]
[330944502,1719959444268,-500.0,0.00014058,2]
[330944504,1719959444278,-227.81582579,0.00014058,2]
[330944505,1719959444287,-500.0,0.00014058,2]
[330944506,1719959444299,-500.0,0.00014058,2]
[330944507,1719959444308,-500.0,0.00014058,2]
[330944508,1719959444317,-500.0,0.00014058,2]
[330944509,1719959444327,-500.0,0.00014058,2]
[330944510,1719959444336,-599.13686848,0.00014058,2]
[330944511,1719959444346,-356.38270483,0.00014058,2]
[330944512,1719959444355,-500.0,0.00014058,2]
[330944513,1719959444365,-500.0,0.00014058,2]
[330944514,1719959444375,-500.0,0.00014058,2]
[330944515,1719959444384,-192.29668673,0.00014058,2]
[330944516,1719959444394,-500.0,0.00014058,2]
[330944517,1719959444403,-500.0,0.00014058,2]
[330944518,1719959444413,-500.0,0.00014058,2]
[330944519,1719959444423,-500.0,0.00014058,2]
[330944520,1719959444433,-501.62247618,0.00014058,2]
[330944521,1719959444443,-503.70037196,0.00014058,2]
[330944522,1719959444453,-500.0,0.00014058,2]
[330944523,1719959444462,-502.50844796,0.00014058,2]
[330944524,1719959444472,-500.0,0.00014058,2]
[330944525,1719959444481,-500.0,0.00014058,2]
[330944526,1719959444491,-500.0,0.00014058,2]
[330944527,1719959444502,-500.0,0.00014058,2]
[330944528,1719959444511,-502.45195742,0.00014058,2]
[330944529,1719959444522,-500.0,0.00014058,2]
[330944530,1719959444532,-497.15790926,0.00014058,2]
[330944531,1719959444543,-500.0,0.00014058,2]
[330944532,1719959444553,-500.0,0.00014058,2]
[330944533,1719959444563,-500.0,0.00014058,2]
[330944534,1719959444573,-500.0,0.00014058,2]
[330944535,1719959444583,-500.0,0.00014058,2]
[330944536,1719959444593,-500.0,0.00014058,2]
[330944537,1719959444603,-500.0,0.00014058,2]
[330944538,1719959444612,-500.0,0.00014058,2]
[330944539,1719959444622,-500.0,0.00014058,2]
[330944540,1719959444632,-501.54009154,0.00014058,2]
[330944541,1719959444641,-500.0,0.00014058,2]
[330944542,1719959444651,-507.16877784,0.00014058,2]
[330944543,1719959444660,-500.0,0.00014058,2]
[330944544,1719959444670,-500.0,0.00014058,2]
[330944545,1719959444680,-500.0,0.00014058,2]
[330944546,1719959444689,-500.0,0.00014058,2]
[330944547,1719959444698,-500.0,0.00014058,2]
[330944548,1719959444707,-492.39499057,0.00014058,2]
[330944549,1719959444716,-628.03,0.00014058,2]
[330944550,1719959444726,-255.4048986,0.00014058,2]
[330944551,1719959444736,-500.0,0.00014058,2]
[330944552,1719959444747,-500.0,0.00014058,2]
[330944553,1719959444756,-655.1,0.00014058,2]
[330944554,1719959444766,-500.0,0.00014058,2]
[330944555,1719959444776,-500.0,0.00014058,2]
[330944556,1719959444785,-500.0,0.00014058,2]
[330944557,1719959444795,-500.0,0.00014058,2]
[330944558,1719959444804,-500.0,0.00014058,2]
[330944559,1719959444814,-373.20209295,0.00014058,2]
[330944560,1719959444827,-126.79790705,0.00014058,2]
[330944561,1719959444837,-500.0,0.00014058,2]
[330944562,1719959444847,-585.2,0.00014058,2]
[330944563,1719959444856,-500.0,0.00014058,2]
[330944564,1719959444865,-500.0,0.00014058,2]
[330944565,1719959444874,-598.77,0.00014058,2]
[330944566,1719959444884,-500.0,0.00014058,2]
[330944567,1719959444893,-622.60315448,0.00014058,2]
[330944568,1719959444902,-500.0,0.00014058,2]
[330944569,1719959444911,-500.0,0.00014058,2]
[330944570,1719959444921,-502.42033999,0.00014058,2]
[330944571,1719959444930,-500.0,0.00014058,2]
[330944572,1719959444940,-504.20451429,0.00014058,2]
[330944573,1719959444950,-500.0,0.00014058,2]
[330944574,1719959444961,-500.0,0.00014058,2]
[330944575,1719959444971,-500.0,0.00014059,2]
[330944576,1719959444980,-500.0,0.00014059,2]
[330944577,1719959444989,-500.0,0.00014059,2]
[330944578,1719959445000,-500.0,0.00014059,2]
[330944579,1719959445009,-500.0,0.00014059,2]
[330944580,1719959445146,-11170.01,0.00014059,2]
[330944581,1719959445156,-543.3,0.00014059,2]
[330944582,1719959445166,-2116.57,0.00014059,2]
[330944583,1719959445176,-1330.9,0.00014059,2]
[330944584,1719959445185,-500.0,0.00014059,2]
[330944585,1719959445195,-4022.75,0.00014059,2]
[330944586,1719959445205,-500.0,0.00014059,2]
[330944587,1719959445215,-500.0,0.00014059,2]
[330944588,1719959445224,-917.12,0.00014059,2]
[330944589,1719959445234,-500.0,0.0001406,2]
[330944590,1719959445244,-661.28,0.0001406,2]
[330944591,1719959445253,-724.74,0.0001406,2]
[330944592,1719959445262,-7151.71,0.0001406,2]
[330944593,1719959445271,-3126.47,0.0001406,2]
[330944594,1719959445280,-153.0,0.00014189,2]
[330944595,1719959445290,-153.0,0.00014189,2]
[330944596,1719959445299,-829.69,0.00014329,2]
[330944597,1719959445308,-1050.4,0.00014329,2]
[330944598,1719959445317,-762.05,0.00014329,2]
[330944599,1719959445326,-953.93,0.00014329,2]
[330944600,1719959445335,-8975.13,0.00014329,2]
[330944601,1719959445345,-1037.96,0.00014329,2]
[330944602,1719959445354,-1817.28,0.00014329,2]
[330944603,1719959445363,-500.0,0.00014329,2]
[330944604,1719959445372,-916.27,0.00014329,2]
[330944605,1719959445382,-525.93,0.00014329,2]
[330944606,1719959445391,-192.44,0.00014329,2]
[330944607,1719959445400,-500.0,0.00014329,2]
[330944608,1719959445409,-500.0,0.00014329,2]
[330944609,1719959445418,-500.0,0.00014329,2]
[330944610,1719959445427,-479.14392406,0.00014329,2]
[330944611,1719959445437,-1854.41,0.00014329,2]
[330944612,1719959445447,-596.64,0.00014329,2]
[330944613,1719959445456,-500.0,0.00014329,2]
[330944614,1719959445466,-500.0,0.00014329,2]
[330944615,1719959445475,-1223.05,0.00014329,2]
[330944616,1719959445484,-1918.32,0.00014329,2]
[330944617,1719959445494,-981.91,0.00014329,2]
[330944618,1719959445504,-880.61,0.00014329,2]
[330944619,1719959445513,-827.78,0.00014329,2]
[330944620,1719959445522,-500.0,0.00014329,2]
[330944621,1719959445532,-500.0,0.00014329,2]
[330944622,1719959445542,-500.0,0.0001433,2]
[330944623,1719959445552,-500.0,0.0001433,2]
[330944624,1719959445562,-500.0,0.0001433,2]
[330944625,1719959445571,-545.77,0.0001433,2]
[330944626,1719959445580,-500.0,0.0001433,2]
[330944627,1719959445590,-500.0,0.0001433,2]
[330944628,1719959445599,-533.21,0.0001433,2]
[330944629,1719959445608,-541.27,0.0001433,2]
[330944630,1719959445617,-500.0,0.0001433,2]
[330944631,1719959445627,-524.99,0.0001433,2]
[330944632,1719959445636,-500.0,0.0001433,2]
[330944633,1719959445645,-500.0,0.0001433,2]
[330944634,1719959445654,-520.77,0.0001433,2]
[330944635,1719959445663,-5942.74,0.0001433,2]
[330944636,1719959445672,-500.0,0.0001433,2]
[330944637,1719959445682,-3373.44,0.0001433,2]
[330944638,1719959445691,-500.0,0.0001433,2]
[330944639,1719959445700,-500.0,0.0001433,2]
[330944640,1719959445709,-247.68581448,0.0001433,2]
[330944641,1719959445718,-1101.56,0.0001433,2]
[330944642,1719959445727,-701.47,0.0001433,2]
[330944643,1719959445736,-3695.33,0.0001433,2]
[330944644,1719959445745,-2694.41,0.0001433,2]
[330944645,1719959445755,-543.41,0.0001433,2]
[330944646,1719959445765,-500.0,0.00014331,2]
[330944647,1719959445774,-500.0,0.00014331,2]
[330944648,1719959445784,-500.0,0.00014331,2]
[330944649,1719959445793,-170.8,0.00014331,2]
[330944650,1719959445803,-5304.27,0.00014331,2]
[330944651,1719959445813,-500.0,0.00014331,2]
[330944652,1719959445823,-980.23,0.00014331,2]
[330944653,1719959445833,-543.39,0.00014331,2]
[330944654,1719959445843,-198.01349131,0.00014331,2]
[330944655,1719959445854,-500.0,0.00014331,2]
[330944656,1719959445864,-500.0,0.00014331,2]
[330944657,1719959445873,-500.0,0.00014331,2]
[330944658,1719959445883,-437.71036704,0.00014331,2]
[330944659,1719959445892,-802.83,0.00014331,2]
[330944660,1719959445902,-666.57,0.00014331,2]
[330944661,1719959445911,-500.0,0.00014332,2]
[330944662,1719959445921,-500.0,0.00014332,2]
[330944663,1719959445930,-500.0,0.00014332,2]
[330944664,1719959445939,-500.0,0.00014332,2]
[330944665,1719959445948,-500.0,0.00014332,2]
[330944666,1719959445957,-628.03,0.00014332,2]
[330944667,1719959445967,-655.1,0.00014332,2]
[330944668,1719959445977,-500.0,0.00014332,2]
[330944669,1719959445988,-585.2,0.00014332,2]
[330944670,1719959445999,-500.0,0.00014332,2]
[330944671,1719959446009,-598.77,0.00014332,2]
[330944672,1719959446019,-500.0,0.00014332,2]
[330944673,1719959446033,-11170.01,0.00014333,2]
[330944674,1719959446043,-543.3,0.00014333,2]
[330944675,1719959446058,-2116.57,0.00014333,2]
[330944676,1719959446067,-1330.9,0.00014333,2]
[330944677,1719959446076,-500.0,0.00014333,2]
[330944678,1719959446086,-4022.75,0.00014333,2]
[330944679,1719959446095,-500.0,0.00014333,2]
[330944680,1719959446105,-917.12,0.00014333,2]
[330944681,1719959446115,-661.28,0.00014334,2]
[330944682,1719959446126,-724.74,0.00014334,2]
[330944683,1719959446136,-7151.71,0.00014334,2]
[330944684,1719959446145,-3126.47,0.00014334,2]
[330944685,1719959446154,-120.41591836,0.00014335,2]
[330944701,1719959464588,373.93,0.00010959,2]
[330944702,1719959601377,302.18198335,0.00013283,2]
[330944703,1719959637744,314.05050005,0.00013955,2]
[330944705,1719959698994,154.94576898,9.999e-05,2]
[330944720,1719959807534,150.8642222,0.00019864,30]
[330944721,1719959807584,150.8642222,0.00019467,120]
[330944728,1719959839164,262.3278843,0.0001,2]
[330944732,1719959918092,274.79418757,0.00013955,2]
[330944743,1719960198548,240.44491415,0.00013954,2]
[330944762,1719960483894,210.38929982,0.00013954,2]
[330944763,1719960501163,-300.0,0.00014052,2]
[330944764,1719960501193,-300.0,0.00014052,2]
[330944765,1719960501221,-37.15988082,0.00014053,2]
[330944766,1719960501254,-462.84011918,0.00014053,2]
[330944767,1719960501282,-174.31976164,0.00014053,2]
[330944768,1719960521237,525.01487892,9.999e-05,2]
[330944769,1719960526236,-662.64627605,0.00014053,2]
[330944770,1719960526298,-386.80396231,0.00014053,2]
[330944771,1719960526326,-275.84231374,0.00014053,2]
[330944772,1719960531914,450.0,0.00025,120]
[330944773,1719960551088,-300.0,0.00014052,2]
[330944774,1719960551118,-300.0,0.00014052,2]
[330944775,1719960551146,-89.15212709,0.00014053,2]
[330944776,1719960551180,-135.00555917,0.00014053,2]
[330944777,1719960551208,-486.37783788,0.00014053,2]
[330944778,1719960576267,-35.29216212,0.00014053,2]
[330944779,1719960576297,-500.0,0.00014053,2]
[330944780,1719960576329,-180.07067546,0.00014053,2]
[330944781,1719960576363,-715.36283758,0.00014053,2]
[330944782,1719960601216,-300.0,0.00014052,2]
[330944783,1719960601246,-443.97735108,0.00014053,2]
[330944784,1719960601353,-743.97735108,0.00014053,2]
[330944850,1719960632135,-313.92,0.00014009,2]
[330944853,1719960632152,-4974.00984094,0.00014009,2]
[330944855,1719960632161,-300.0,0.00014052,2]
[330944857,1719960632172,-254.94,0.00014053,2]
[330944859,1719960632182,-500.0,0.00014053,2]
[330944861,1719960632191,-1077.76,0.00014053,2]
[330944863,1719960632202,-500.0,0.00014053,2]
[330944865,1719960632211,-500.0,0.00014053,2]
[330944867,1719960632222,-1908.53,0.00014053,2]
[330944869,1719960632231,-500.0,0.00014053,2]
[330944871,1719960632241,-500.0,0.00014053,2]
[330944873,1719960632250,-500.0,0.00014053,2]
[330944875,1719960632260,-134.00357346,0.00014053,2]
[330944912,1719960638005,-365.99642654,0.00014053,2]
[330944914,1719960638015,-949.96,0.00014053,2]
[330944916,1719960638025,-500.0,0.00014053,2]
[330944918,1719960638035,-500.0,0.00014053,2]
[330944920,1719960638045,-475.80574559,0.00014053,2]
[330944922,1719960638054,-1226.41,0.00014053,2]
[330944924,1719960638063,-394.65669353,0.00014053,2]
[330944926,1719960638076,-105.34330647,0.00014053,2]
[330944928,1719960638086,-500.0,0.00014053,2]
[330944930,1719960638095,-20.10385898,0.00014053,2]
[330944932,1719960638107,-479.89614102,0.00014053,2]
[330944934,1719960638117,-545.4987806,0.00014053,2]
[330944937,1719960638128,-1386.0412194,0.00014053,2]
[330944939,1719960638138,-1985.62,0.00014053,2]
[330944941,1719960638148,-1012.32,0.00014053,2]
[330944943,1719960638158,-500.0,0.00014053,2]
[330944945,1719960638168,-9351.63,0.00014053,2]
[330944947,1719960638178,-500.0,0.00014053,2]
[330944949,1719960638187,-500.0,0.00014053,2]
[330944951,1719960638197,-489.91321536,0.00014053,2]
[330944953,1719960638207,-892.83,0.00014053,2]
[330944955,1719960638216,-500.29,0.00014054,2]
[330944957,1719960638227,-500.0,0.00014054,2]
[330944959,1719960638236,-500.0,0.00014054,2]
[330944961,1719960638245,-500.0,0.00014054,2]
[330944963,1719960638255,-500.0,0.00014054,2]
[330944965,1719960638265,-500.0,0.00014054,2]
[330944967,1719960638275,-500.0,0.00014054,2]
[330944969,1719960638284,-500.0,0.00014054,2]
[330944971,1719960638294,-500.0,0.00014054,2]
[330944973,1719960638303,-500.0,0.00014054,2]
[330944975,1719960638313,-141.01131908,0.00014054,2]
[330944991,1719960639538,-358.98868092,0.00014054,2]
[330944992,1719960639548,-500.0,0.00014054,2]
[330944993,1719960639557,-500.0,0.00014054,2]
[330944994,1719960639567,-488.65597092,0.00014054,2]
[330944995,1719960639579,-11.34402908,0.00014054,2]
[330944996,1719960639589,-500.0,0.00014054,2]
[330944997,1719960639599,-848.01,0.00014054,2]
[330944998,1719960639608,-500.0,0.00014054,2]
[330944999,1719960639618,-507.81596062,0.00014054,2]
[330945000,1719960639628,-500.0,0.00014054,2]
[330945001,1719960639637,-500.0,0.00014054,2]
[330945003,1719960639647,-500.0,0.00014054,2]
[330945004,1719960639657,-344.57802854,0.00014054,2]
[330945005,1719960639670,-678.38197146,0.00014054,2]
[330945006,1719960639680,-500.0,0.00014054,2]
[330945007,1719960639691,-500.0,0.00014054,2]
[330945008,1719960639700,-500.0,0.00014054,2]
[330945009,1719960639710,-500.0,0.00014054,2]
[330945010,1719960639719,-500.0,0.00014054,2]
[330945011,1719960639730,-754.14,0.00014054,2]
[330945012,1719960639740,-951.41,0.00014054,2]
[330945013,1719960639750,-500.0,0.00014054,2]
[330945014,1719960639759,-500.0,0.00014054,2]
[330945015,1719960639769,-500.0,0.00014054,2]
[330945016,1719960639779,-500.0,0.00014054,2]
[330945017,1719960639788,-102.30641233,0.00014054,2]
[330945031,1719960640467,-1092.09,0.00014053,2]
[330945032,1719960640478,-397.69358767,0.00014054,2]
[330945033,1719960640488,-596.27,0.00014054,2]
[330945034,1719960640498,-525.33,0.00014054,2]
[330945035,1719960640508,-500.0,0.00014054,2]
[330945036,1719960640518,-500.0,0.00014054,2]
[330945037,1719960640528,-500.0,0.00014054,2]
[330945038,1719960640537,-500.0,0.00014054,2]
[330945039,1719960640546,-500.0,0.00014054,2]
[330945040,1719960640555,-500.0,0.00014054,2]
[330945041,1719960640565,-3304.24,0.00014054,2]
[330945042,1719960640574,-500.0,0.00014054,2]
[330945043,1719960640583,-500.0,0.00014054,2]
[330945044,1719960640594,-547.58,0.00014054,2]
[330945045,1719960640603,-500.0,0.00014054,2]
[330945046,1719960640612,-456.89,0.00014054,2]
[330945047,1719960640622,-500.0,0.00014054,2]
[330945048,1719960640631,-500.0,0.00014054,2]
[330945049,1719960640641,-500.0,0.00014054,2]
[330945050,1719960640650,-555.69,0.00014054,2]
[330945051,1719960640659,-500.0,0.00014054,2]
[330945052,1719960640668,-500.0,0.00014054,2]
[330945053,1719960640678,-567.7,0.00014054,2]
[330945054,1719960640687,-500.0,0.00014054,2]
[330945055,1719960640696,-1036.81,0.00014054,2]
[330945056,1719960640705,-500.0,0.00014054,2]
[330945057,1719960640714,-527.95,0.00014054,2]
[330945058,1719960640724,-500.0,0.00014054,2]
[330945059,1719960640734,-716.37,0.00014054,2]
[330945060,1719960640744,-500.0,0.00014054,2]
[330945061,1719960640753,-500.0,0.00014054,2]
[330945062,1719960640762,-540.73,0.00014054,2]
[330945063,1719960640771,-500.0,0.00014054,2]
[330945064,1719960640780,-3711.06,0.00014054,2]
[330945065,1719960640789,-556.34,0.00014054,2]
[330945066,1719960640798,-209.59,0.00014054,2]
[330945067,1719960640808,-500.0,0.00014054,2]
[330945068,1719960640817,-587.23,0.00014054,2]
[330945069,1719960640826,-500.0,0.00014054,2]
[330945070,1719960640835,-500.0,0.00014054,2]
[330945071,1719960640844,-577.78,0.00014054,2]
[330945072,1719960640853,-608.27,0.00014054,2]
[330945073,1719960640862,-500.0,0.00014054,2]
[330945074,1719960640871,-500.0,0.00014054,2]
[330945075,1719960640880,-500.0,0.00014054,2]
[330945076,1719960640889,-500.0,0.00014054,2]
[330945077,1719960640898,-6320.56,0.00014054,2]
[330945078,1719960640907,-500.0,0.00014054,2]
[330945079,1719960640916,-828.85,0.00014054,2]
[330945080,1719960640925,-500.0,0.00014054,2]
[330945081,1719960640934,-500.0,0.00014055,2]
[330945082,1719960640944,-500.0,0.00014055,2]
[330945083,1719960640953,-500.0,0.00014055,2]
[330945084,1719960640962,-500.0,0.00014055,2]